bitfinex-derivatives/quotes_ETHF0:USTF0_20251103
["timestamp","ask_amount","ask_price","bid_price","bid_amount"]
[1762144837934,0.2356,3739.4,3739.3,0.47322491]
[1762144838135,0.1423,3739.5,3739.3,0.47322491]
[1762144839230,0.1423,3739.5,3739.4,9.403]
[1762144839435,0.1423,3739.5,3739.4,12.6108]
[1762144840235,0.1423,3739.5,3739.4,12.6098]
[1762144840733,0.1423,3739.5,3739.4,9.402]
[1762144842340,0.1423,3739.5,3739.4,12.6098]
[1762144845737,0.1423,3739.5,3739.4,12.6088]
[1762144847341,0.1423,3740.0,3739.4,12.6088]
[1762144847742,0.1423,3740.0,3739.7,0.48137]
[1762144847943,0.1423,3740.0,3739.8,9.401]
[1762144848636,0.1423,3740.0,3739.8,12.6088]
[1762144848842,3.2078,3740.8,3740.0,0.48133]
[1762144849038,3.2078,3740.8,3740.1,9.4]
[1762144852043,0.1423,3741.0,3740.3,3.2078]
[1762144852252,0.1423,3741.0,3740.7,3.2078]
[1762144852446,0.1423,3741.0,3740.8,9.399]
[1762144852644,0.2202,3740.4,3740.3,3.2078]
[1762144852947,0.2202,3740.4,3740.3,12.6068]
[1762144854942,0.3569,3740.0,3739.9,3.2078]
[1762144855142,0.3569,3740.0,3739.9,12.6058]
[1762144855451,0.3569,3740.0,3739.9,9.398]
[1762144856844,0.2202,3739.6,3739.5,3.2078]
[1762144857242,0.2202,3739.4,3739.3,9.87022491]
[1762144861655,0.1367,3739.5,3739.3,9.87022491]
[1762144862845,0.2202,3739.4,3739.3,9.87022491]
[1762144863949,0.1367,3739.5,3739.3,9.87022491]
[1762144865357,0.2202,3739.4,3739.3,9.87022491]
[1762144865764,0.2202,3739.4,3739.3,0.47322491]
[1762144867550,0.1367,3739.5,3739.3,0.47322491]
[1762144869457,0.2202,3739.4,3739.3,0.47322491]
[1762144872064,0.1367,3739.5,3739.3,0.47322491]
[1762144872965,0.1367,3739.5,3739.4,12.6038]
[1762144876968,0.1367,3739.5,3739.4,3.2078]
[1762144877162,0.1367,3739.5,3739.3,0.47322491]
[1762144878659,0.2202,3739.4,3739.3,0.47322491]
[1762144883978,3.428,3739.4,3739.3,0.47322491]
[1762144884181,3.70193672,3739.4,3739.3,0.47322491]
[1762144884385,0.1356,3738.5,3738.3,0.48154]
[1762144884576,0.3602,3738.5,3738.4,4.098]
[1762144885475,0.36256982,3738.5,3738.4,0.00282634]
[1762144888480,0.227,3737.8,3737.7,12.6008]
[1762144889373,0.227,3737.8,3737.7,12.60339225]
[1762144890982,0.1382,3738.0,3737.7,12.60339225]
[1762144891477,0.1382,3738.0,3736.8,3.2078]
[1762144891478,0.1382,3737.0,3736.8,3.2078]
[1762144891682,0.227,3736.9,3736.8,3.2078]
[1762144891879,0.1382,3736.5,3736.4,3.2078]
[1762144892185,0.1382,3736.5,3736.4,12.6008]
[1762144892383,1.50187096,3736.5,3736.4,12.60421117]
[1762144892585,1.50187096,3736.5,3736.4,9.39641117]
[1762144893372,0.3652,3736.5,3736.4,9.39641117]
[1762144893585,1.50187096,3736.5,3736.4,0.00341117]
[1762144894980,1.50187096,3736.5,3736.0,3.2078]
[1762144895282,0.1382,3736.0,3735.8,9.394]
[1762144895677,0.1382,3736.0,3735.8,9.87586]
[1762144896083,0.1382,3736.0,3735.8,9.394]
[1762144896284,0.1382,3736.0,3735.8,9.3966383]
[1762144896787,0.1382,3736.0,3735.9,0.48185]
[1762144897090,0.1382,3736.5,3735.9,0.48185]
[1762144897289,0.1382,3736.5,3735.8,10.53330926]
[1762144897290,0.1382,3736.5,3736.1,1.61850096]
[1762144897492,0.1382,3736.5,3736.2,9.394]
[1762144898284,0.1382,3736.5,3736.4,4.34447096]
[1762144898591,0.1382,3736.5,3736.4,3.2078]
[1762144898786,0.1382,3736.5,3736.4,12.6018]
[1762144898990,0.3652,3736.5,3736.4,12.6018]
[1762144900693,0.1382,3736.5,3736.4,12.6018]
[1762144902390,0.1382,3736.5,3736.4,3.2078]
[1762144902691,0.1382,3736.5,3736.4,12.6028]
[1762144920508,0.1382,3736.5,3736.4,13.73947096]
[1762144920697,0.1382,3737.0,3736.4,14.22125096]
[1762144920895,0.1382,3737.0,3736.7,1.13667096]
[1762144921105,0.28237902,3736.9,3736.8,9.39]
[1762144922608,0.1382,3737.5,3736.8,12.5978]
[1762144922813,0.1382,3737.5,3737.3,4.82614096]
[1762144923001,0.1382,3738.0,3737.4,9.39]
[1762144923203,0.1431,3737.5,3737.4,9.39]
[1762144925912,0.1382,3738.0,3737.5,0.48165]
[1762144926107,0.1382,3738.0,3737.7,1.13667096]
[1762144926414,0.1382,3738.0,3737.3,3.2078]
[1762144926415,0.1431,3737.5,3737.3,4.82614096]
[1762144926714,0.1431,3737.5,3737.4,9.388]
[1762144927707,0.1382,3738.0,3737.7,0.48162]
[1762144927907,0.1382,3738.0,3737.8,9.388]
[1762144929109,0.1382,3738.0,3737.9,9.387]
[1762144929810,0.14546982,3738.5,3738.3,0.48155]
[1762144930011,0.1431,3739.5,3738.8,0.48147]
[1762144930210,0.1431,3739.5,3738.9,13.73047096]
[1762144930611,0.1431,3739.5,3739.4,4.34447096]
[1762144930819,0.1431,3739.5,3739.4,13.73047096]
[1762144931005,0.14646328,3739.5,3739.4,13.73337726]
[1762144931411,0.14646328,3739.5,3739.4,3.2107063]
[1762144931610,0.37546328,3739.5,3739.4,12.5967063]
[1762144931916,0.14646328,3739.5,3739.4,12.5967063]
[1762144932817,0.14646328,3739.5,3739.4,3.2107063]
[1762144933019,0.14646328,3739.5,3739.4,10.3757063]
[1762144933316,0.14646328,3739.5,3739.4,12.5947063]
[1762144933714,0.37546328,3739.5,3739.4,12.5947063]
[1762144933914,1.51213424,3739.5,3739.4,0.0029063]
[1762144934320,0.37546328,3739.5,3739.4,0.0029063]
[1762144935312,0.3723,3739.0,3738.9,3.2078]
[1762144935511,0.2375,3738.6,3738.5,6.5508]
[1762144935917,0.1433,3739.0,3738.5,6.5508]
[1762144936211,0.1433,3739.0,3738.5,3.2078]
[1762144936514,0.1433,3739.0,3738.5,3.69278292]
[1762144936714,0.1433,3739.0,3738.5,3.21126292]
[1762144937321,0.1433,3739.0,3738.6,0.48151]
[1762144937514,0.1433,3739.0,3738.5,3.21126292]
[1762144937820,0.1433,3739.0,3738.8,0.48148]
[1762144938223,0.1433,3739.0,3738.7,0.48149]
[1762144938524,0.1433,3739.0,3738.9,3.2078]
[1762144938721,0.1433,3739.0,3738.9,12.5898]
[1762144939117,0.14646328,3739.5,3739.4,0.48141]
[1762144939314,0.14646328,3739.5,3739.4,13.07021]
[1762144943420,0.14646328,3739.5,3739.4,12.5888]
[1762144943820,0.14646328,3739.5,3739.4,12.5868]
[1762144945020,0.14646328,3739.5,3739.4,3.2078]
[1762144945218,0.38396328,3739.5,3739.4,3.2078]
[1762144945523,0.38396328,3739.5,3739.4,12.5858]
[1762144947524,0.14646328,3739.5,3739.4,12.5858]
[1762144948024,0.14646328,3739.5,3739.4,12.5848]
[1762144952824,0.14646328,3739.5,3739.4,3.2078]
[1762144953025,0.37356328,3739.5,3739.4,6.65]
[1762144953837,0.14646328,3739.5,3739.4,6.65]
[1762144954042,0.14646328,3739.5,3739.0,3.2078]
[1762144954345,0.14646328,3739.5,3739.1,7.097]
[1762144954936,0.14646328,3739.5,3739.1,0.48145]
[1762144955140,0.14646328,3739.5,3739.2,7.931]
[1762144957247,0.2271,3739.3,3739.2,7.931]
[1762144957848,0.14646328,3739.5,3739.2,7.931]
[1762144958548,0.2271,3739.1,3739.0,3.2078]
[1762144959853,0.14646328,3739.5,3739.0,3.2078]
[1762144960252,0.14646328,3739.5,3739.0,3.68925]
[1762144961448,0.14646328,3739.5,3739.0,3.2078]
[1762144961646,0.14646328,3739.5,3739.0,3.68926]
[1762144962055,0.14646328,3739.5,3739.0,3.2078]
[1762144964445,0.2271,3739.1,3739.0,3.2078]
[1762144964653,0.2271,3738.7,3738.6,3.2078]
[1762144964852,0.2271,3738.7,3738.6,12.5808]
[1762144966952,0.2271,3738.6,3738.5,0.00346292]
[1762144967157,0.5215871,3738.6,3738.5,0.00346292]
[1762144968447,0.2248,3738.2,3738.1,3.2078]
[1762144968650,0.2248,3737.8,3737.7,4.613]
[1762144968950,0.2248,3737.7,3737.6,12.5808]
[1762144969655,0.2248,3737.7,3737.6,12.58402845]
[1762144970756,0.1418,3738.0,3737.6,3.21102845]
[1762144970956,0.1418,3738.0,3737.7,9.374]
[1762144972152,0.2248,3737.8,3737.7,9.374]
[1762144973754,0.2248,3737.8,3737.6,3.21102845]
[1762144973955,0.2248,3737.8,3737.7,9.373]
[1762144976955,0.1418,3738.0,3737.6,3.21102845]
[1762144976956,0.2248,3737.7,3737.6,0.00322845]
[1762144979356,0.2248,3737.7,3737.0,9.373]
[1762144979357,0.2248,3737.1,3737.0,9.373]
[1762144979560,0.3666,3737.0,3736.9,9.373]
[1762144979965,0.3666,3737.0,3736.8,9.373]
[1762144980265,0.1418,3737.0,3736.8,9.85713388]
[1762144982464,0.1418,3737.0,3736.8,0.00239388]
[1762144982665,0.1418,3737.0,3736.9,9.373]
[1762144986269,0.1418,3737.0,3736.8,0.48413388]
[1762144986469,0.1418,3737.0,3736.9,9.373]
[1762144991665,0.2248,3736.4,3736.3,3.2078]
[1762144991863,0.2248,3735.9,3735.6,2.34153413]
[1762144992068,0.1418,3735.5,3734.9,9.372]
[1762144992768,0.1418,3735.5,3734.9,12.5798]
[1762144992969,0.1418,3735.0,3734.9,12.5798]
[1762144993169,0.1418,3735.0,3734.9,9.37434788]
[1762144995972,3.5744,3735.0,3734.9,0.00234788]
[1762144997773,0.3666,3735.0,3734.9,0.00234788]
[1762144998075,0.1418,3735.0,3734.9,0.00234788]
[1762144999790,0.2368,3734.8,3734.7,0.02677627]
[1762144999973,0.1301,3734.0,3733.2,3.2078]
[1762145000281,0.1301,3733.5,3733.3,0.779]
[1762145000879,0.1301,3733.5,3733.3,0.7823762]
[1762145001080,0.1301,3733.5,3733.3,0.0033762]
[1762145001379,0.1301,3733.5,3733.4,9.375]
[1762145002682,0.1301,3733.5,3733.3,0.0033762]
[1762145002977,0.1301,3733.5,3733.4,9.376]
[1762145003478,0.1301,3733.5,3733.3,0.0033762]
[1762145003675,0.1301,3733.5,3733.3,9.3803762]
[1762145005179,0.1301,3733.5,3733.4,9.377]
[1762145006070,0.1301,3733.5,3733.3,0.0033762]
[1762145006273,0.2242,3733.4,3733.3,9.3813762]
[1762145008374,0.2242,3733.4,3733.3,0.0033762]
[1762145013393,0.2242,3732.9,3732.8,9.38]
[1762145014588,0.2242,3732.9,3732.8,9.38216569]
[1762145017188,0.1322,3733.0,3732.8,9.38216569]
[1762145018187,0.2242,3732.9,3732.8,0.00216569]
[1762145018581,0.1322,3733.0,3732.8,0.00216569]
[1762145019889,0.2242,3732.9,3732.8,0.00216569]
[1762145021284,0.1322,3731.5,3731.4,3.67903068]
[1762145021483,0.1322,3731.5,3731.4,11.16103068]
[1762145021686,0.1322,3732.0,3731.5,0.48242]
[1762145021883,0.1322,3732.0,3731.7,0.48239]
[1762145022186,0.1322,3732.0,3731.4,11.16103068]
[1762145022187,0.3564,3731.5,3731.4,0.47123068]
[1762145022485,0.1322,3731.5,3731.4,0.47386632]
[1762145022881,0.1322,3731.5,3731.4,9.85886632]
[1762145023990,0.00250835,3732.0,3731.4,9.85886632]
[1762145024189,0.00250835,3732.0,3731.9,3.2078]
[1762145024386,0.00250835,3732.0,3731.9,12.5998]
[1762145026380,0.00250835,3732.0,3731.9,9.392]
[1762145026585,0.14480835,3732.0,3731.9,9.392]
[1762145027291,0.14480835,3732.0,3731.9,9.393]
[1762145027791,0.14480835,3732.0,3731.6,0.4824]
[1762145027991,0.14480835,3732.0,3731.7,9.389]
[1762145028987,0.14480835,3732.0,3731.7,9.87139]
[1762145029390,0.14480835,3732.0,3731.8,9.389]
[1762145030186,0.14480835,3732.0,3731.8,9.87138]
[1762145032191,0.00250835,3732.0,3731.8,9.87138]
[1762145032390,0.14480835,3732.0,3731.9,3.2078]
[1762145034391,0.14480835,3732.0,3731.9,12.5918]
[1762145034697,0.1423,3731.5,3731.4,0.47386632]
[1762145034994,0.1423,3731.5,3731.4,9.85786632]
[1762145035385,0.1423,3731.5,3731.4,9.86386632]
[1762145036197,0.1423,3731.5,3731.4,0.47386632]
[1762145036389,0.1423,3731.5,3731.4,9.86286632]
[1762145036588,0.1423,3731.5,3731.4,9.86186632]
[1762145037893,0.1423,3731.5,3731.4,0.47386632]
[1762145038191,0.1423,3731.5,3731.4,9.86186632]
[1762145038491,0.375,3731.5,3731.4,9.85986632]
[1762145038690,0.375,3731.5,3731.4,0.47386632]
[1762145038890,0.375,3731.5,3731.4,9.85886632]
[1762145039291,0.375,3731.5,3731.4,9.86186632]
[1762145039988,0.1423,3731.5,3731.4,9.86186632]
[1762145040798,0.1423,3731.5,3730.3,1.20644]
[1762145040799,0.1423,3730.5,3730.3,3.2078]
[1762145041092,0.1423,3730.5,3730.4,9.387]
[1762145041886,0.1423,3731.0,3730.4,9.87291472]
[1762145042093,0.1423,3731.0,3730.7,3.2078]
[1762145042293,0.1423,3731.0,3730.8,9.388]
[1762145042693,0.2327,3730.9,3730.8,9.388]
[1762145043193,0.2327,3730.9,3730.4,0.00335472]
[1762145043194,0.375,3730.5,3730.4,0.00335472]
[1762145043397,0.375,3730.5,3730.4,9.39135472]
[1762145043595,0.1423,3730.5,3730.4,9.39135472]
[1762145043797,0.1423,3730.5,3730.4,0.00335472]
[1762145043999,0.1423,3730.5,3730.4,9.39135472]
[1762145044902,0.1423,3730.5,3730.4,9.87392472]
[1762145045100,0.1423,3730.5,3730.4,9.39135472]
[1762145045304,3.3501,3731.5,3730.4,9.39135472]
[1762145045504,0.1423,3731.0,3730.6,3.2078]
[1762145045697,0.29058889,3730.9,3730.6,3.2078]
[1762145046002,0.1423,3731.0,3730.6,3.2078]
[1762145046003,0.29058889,3730.8,3730.6,3.2078]
[1762145046200,0.1423,3731.0,3730.6,3.2078]
[1762145046401,0.2327,3730.7,3730.6,3.2078]
[1762145046705,0.1423,3731.0,3730.6,12.5968]
[1762145046896,0.2327,3730.7,3730.6,12.5968]
[1762145047297,0.2327,3730.7,3730.4,0.00335472]
[1762145047589,0.1423,3730.5,3730.4,0.00335472]
[1762145047793,0.1423,3730.5,3730.4,6.65335472]
[1762145048194,0.375,3730.5,3730.4,9.39035472]
[1762145048604,0.375,3730.5,3730.4,9.39235472]
[1762145049206,0.375,3730.5,3730.4,0.00335472]
[1762145049499,0.375,3730.5,3730.4,5.75735472]
[1762145050002,0.375,3730.5,3730.4,0.00335472]
[1762145050411,0.375,3730.5,3730.4,5.60435472]
[1762145050899,0.1423,3730.5,3730.4,5.60435472]
[1762145051100,0.1423,3731.0,3730.6,0.48253]
[1762145051304,0.1423,3731.0,3730.7,3.2078]
[1762145051494,0.1423,3731.0,3730.7,3.69032]
[1762145051806,0.1423,3731.0,3730.8,0.48251]
[1762145052004,0.1423,3731.0,3730.9,9.395]
[1762145054808,0.1423,3731.0,3730.7,3.2078]
[1762145055003,0.1423,3731.0,3730.9,9.397]
[1762145055596,0.1423,3731.0,3730.9,9.393]
[1762145057799,0.1423,3731.5,3731.0,0.48248]
[1762145057993,0.1423,3731.5,3731.1,3.2078]
[1762145058196,0.1423,3731.5,3731.1,3.69027]
[1762145058597,0.1423,3731.5,3731.1,3.2078]
[1762145059002,0.1423,3731.5,3731.3,0.48244]
[1762145059203,0.1423,3731.5,3731.4,9.388]
[1762145059402,0.14480835,3732.0,3731.5,0.48242]
[1762145060199,0.14480835,3732.0,3731.7,3.6902]
[1762145060405,0.14480835,3732.0,3731.8,9.388]
[1762145062914,0.14670835,3732.0,3731.8,9.87038]
[1762145064112,0.1442,3733.0,3731.8,9.388]
[1762145064412,0.1442,3733.0,3732.6,0.48227]
[1762145064603,0.1442,3733.0,3732.7,9.86926]
[1762145065007,0.1442,3733.0,3732.7,9.387]
[1762145065207,0.14728863,3733.0,3732.7,9.387]
[1762145065711,0.14728863,3733.0,3732.4,5.12782383]
[1762145066010,0.1396,3732.5,3732.4,3.2078]
[1762145066210,0.1396,3732.5,3732.4,12.5938]
[1762145066407,0.3719,3732.5,3732.4,3.2078]
[1762145066611,0.3719,3732.5,3732.4,12.5938]
[1762145067113,0.1396,3732.5,3732.4,12.5938]
[1762145068410,0.14728863,3733.0,3732.6,0.48227]
[1762145068611,0.14728863,3733.0,3732.4,13.0761]
[1762145068804,0.14728863,3733.0,3732.5,0.48229]
[1762145069006,0.14728863,3733.0,3732.4,13.0761]
[1762145069611,3.2078,3732.6,3732.4,9.386]
[1762145069910,0.2323,3731.2,3731.1,3.2078]
[1762145070215,0.2323,3730.8,3730.7,3.2078]
[1762145071615,0.1396,3731.0,3730.4,0.00335472]
[1762145071616,0.3719,3730.5,3730.4,0.00335472]
[1762145072210,0.1396,3730.5,3730.4,0.00335472]
[1762145073419,0.1396,3730.5,3730.4,3.21115472]
[1762145074620,0.1396,3730.5,3730.4,0.00335472]
[1762145078215,3.5797,3730.5,3730.4,0.00335472]
[1762145078418,0.2323,3729.8,3729.7,0.02681217]
[1762145078615,0.2323,3729.8,3729.7,9.42481217]
[1762145079414,0.2349916,3729.8,3729.7,9.42806514]
[1762145079613,0.2349916,3729.8,3729.7,9.91072514]
[1762145079614,0.0026916,3729.8,3729.7,9.91072514]
[1762145079820,0.0026916,3729.8,3729.7,9.42806514]
[1762145083925,0.0026916,3729.8,3729.7,9.42506514]
[1762145084522,0.0026916,3729.8,3729.7,0.03006514]
[1762145084722,0.0026916,3729.8,3729.7,9.42406514]
[1762145090234,0.0026916,3729.8,3729.7,9.42506514]
[1762145091837,0.1396,3730.5,3730.2,0.48258]
[1762145092029,0.1396,3730.5,3730.3,9.395]
[1762145092224,0.3769,3730.5,3730.4,9.397]
[1762145092444,0.3769,3730.5,3729.7,0.03006514]
[1762145092445,0.2373,3729.8,3729.7,0.03006514]
[1762145092643,0.2373,3729.8,3729.7,9.42806514]
[1762145092850,0.23961363,3729.8,3729.7,9.42806514]
[1762145094841,0.00231363,3729.8,3729.7,9.42806514]
[1762145096563,0.23961363,3729.8,3729.7,9.42806514]
[1762145097651,0.00231363,3729.8,3729.7,9.42806514]
[1762145098656,0.23961363,3729.8,3729.7,9.42806514]
[1762145099546,0.00231363,3729.8,3729.7,9.42806514]
[1762145101261,0.23961363,3729.8,3729.7,9.42806514]
[1762145101655,0.00231363,3729.8,3729.7,9.42806514]
[1762145103163,0.00231363,3729.8,3729.7,9.42306514]
[1762145103361,0.1396,3730.5,3729.7,9.42306514]
[1762145103574,0.1396,3731.0,3730.4,3.69036]
[1762145103759,0.1396,3731.0,3730.8,3.2078]
[1762145104061,0.1396,3731.5,3731.0,0.48248]
[1762145104467,0.14204932,3731.5,3731.0,0.48248]
[1762145104669,0.14204932,3731.5,3730.9,9.8855]
[1762145104857,0.14204932,3731.5,3731.0,0.48248]
[1762145105058,0.14204932,3731.5,3731.0,0.4825]
[1762145105957,0.14204932,3731.5,3730.9,9.403]
[1762145105958,0.14204932,3731.5,3731.1,9.404]
[1762145106363,0.14204932,3731.5,3731.3,0.48244]
[1762145106661,0.14204932,3731.5,3731.4,9.404]
[1762145106867,0.00244932,3731.5,3731.4,9.404]
[1762145107661,0.13844932,3731.5,3731.4,9.404]
[1762145108164,0.13844932,3731.5,3731.4,9.402]
[1762145111072,0.00244932,3731.5,3731.4,9.402]
[1762145111267,3.2078,3732.4,3731.5,0.48242]
[1762145111463,3.2078,3732.4,3731.4,9.402]
[1762145111966,3.2078,3732.4,3731.6,3.2078]
[1762145112166,0.1382403,3732.0,3731.7,9.396]
[1762145113262,0.2373,3731.8,3731.7,9.396]
[1762145113761,0.136,3731.5,3731.1,3.2078]
[1762145113962,0.2373,3730.8,3730.7,3.2078]
[1762145114162,0.136,3730.5,3730.3,3.2078]
[1762145114363,0.136,3730.5,3730.4,9.398]
[1762145114562,0.3733,3730.5,3730.4,9.398]
[1762145115071,0.136,3730.5,3730.4,9.398]
[1762145116468,0.3556,3730.5,3730.4,9.398]
[1762145118965,0.3556,3730.5,3729.9,3.2078]
[1762145119166,0.1303,3730.0,3729.7,0.03006514]
[1762145119471,0.2196,3729.9,3729.8,7.92]
[1762145121070,0.1303,3730.0,3729.8,7.92]
[1762145127076,0.2196,3729.9,3729.8,7.92]
[1762145127574,0.1303,3730.0,3729.8,7.92]
[1762145129578,3.3438,3731.5,3730.1,0.48259]
[1762145129775,3.2078,3731.1,3730.2,9.87359]
[1762145130481,3.3438,3731.5,3730.4,3.2078]
[1762145131375,3.3438,3731.5,3730.6,0.48254]
[1762145131680,3.3438,3731.5,3730.7,9.391]
[1762145132280,3.3438,3731.5,3730.7,9.87352]
[1762145132477,3.3438,3731.5,3730.8,0.48251]
[1762145132677,3.3438,3731.5,3730.7,9.391]
[1762145132878,3.3438,3731.5,3730.7,9.87352]
[1762145133081,0.136,3731.5,3731.0,3.69028]
[1762145133373,0.136,3731.5,3731.1,9.391]
[1762145139484,0.136,3731.5,3731.1,9.87347]
[1762145141588,0.136,3731.5,3731.1,9.391]
[1762145152000,0.136,3731.5,3731.1,9.87347]
[1762145153300,3.2078,3731.9,3731.3,1.62406117]
[1762145153499,0.1388,3731.5,3731.4,9.388]
[1762145154302,3.2078,3731.9,3731.4,9.388]
[1762145154502,0.1388,3731.5,3731.4,9.388]
[1762145155204,0.3651,3731.5,3731.4,9.388]
[1762145155399,0.3651,3731.5,3731.0,3.2078]
[1762145155606,0.1388,3730.5,3730.2,3.2078]
[1762145156001,0.1388,3730.5,3730.2,12.5948]
[1762145156205,1.36791117,3730.3,3730.2,12.5948]
[1762145156705,1.36791117,3730.3,3730.2,9.387]
[1762145159211,0.1388,3730.5,3730.2,9.387]
[1762145159706,3.2078,3730.9,3730.2,11.01119117]
[1762145160010,3.2078,3730.9,3730.5,1.14161117]
[1762145160203,3.2078,3730.9,3730.7,0.48253]
[1762145160406,0.1388,3731.5,3730.8,1.14161117]
[1762145160601,0.1388,3731.5,3731.0,3.2078]
[1762145160802,0.1388,3731.5,3731.1,9.388]
[1762145162406,3.4341,3731.2,3731.1,9.388]
[1762145162712,3.72669489,3731.2,3731.1,9.388]
[1762145163103,3.72669489,3731.2,3730.1,3.2078]
[1762145163304,0.1388,3730.5,3730.2,8.80358]
[1762145163913,0.1388,3730.5,3730.2,8.80359]
[1762145164502,0.1388,3730.5,3730.2,8.321]
[1762145166010,0.1388,3730.5,3730.2,8.80358]
[1762145166514,0.1388,3730.5,3730.2,8.321]
[1762145168210,0.1388,3730.0,3729.7,3.23786514]
[1762145168517,0.1388,3730.0,3729.8,9.388]
[1762145169408,0.1388,3730.5,3729.8,9.87063]
[1762145169810,0.1388,3730.5,3730.1,3.2078]
[1762145170020,0.1388,3730.5,3730.2,9.388]
[1762145176223,3.2078,3731.4,3730.6,0.48254]
[1762145176424,3.2078,3731.4,3730.7,12.5958]
[1762145176617,0.1302,3731.0,3730.7,12.5958]
[1762145176926,3.2078,3731.8,3730.7,12.5958]
[1762145177325,3.2078,3731.8,3730.7,13.07832]
[1762145177728,3.2078,3731.8,3730.8,0.48251]
[1762145177926,3.2078,3731.8,3731.0,0.48248]
[1762145178127,3.2078,3731.8,3731.1,9.388]
[1762145178921,3.2078,3731.8,3731.1,9.87047]
[1762145179120,3.2078,3731.8,3731.1,13.07827]
[1762145179326,3.2078,3731.8,3731.2,0.48246]
[1762145180025,0.1410403,3732.0,3731.2,0.48246]
[1762145182122,0.1410403,3732.0,3731.1,12.5958]
[1762145182626,0.1410403,3732.0,3731.3,0.48244]
[1762145183825,0.1410403,3732.0,3731.5,3.69021]
[1762145184023,0.1410403,3732.0,3731.6,9.387]
[1762145184726,0.1410403,3732.0,3731.6,9.86941]
[1762145184926,0.1410403,3732.0,3731.7,0.48239]
[1762145185529,0.1410403,3732.0,3731.6,9.387]
[1762145186028,0.1410403,3732.0,3731.7,0.4824]
[1762145186216,0.1410403,3732.0,3731.9,3.2078]
[1762145188534,0.0022403,3732.0,3731.9,3.2078]
[1762145189631,0.1302,3732.5,3732.2,0.48233]
[1762145189837,0.1302,3732.5,3732.3,9.385]
[1762145190033,0.1302,3732.5,3732.3,9.86731]
[1762145190529,0.13240186,3732.5,3732.3,9.86731]
[1762145190731,3.2078,3733.1,3732.3,9.385]
[1762145190931,3.2078,3733.1,3732.6,0.48227]
[1762145191130,3.2078,3733.6,3732.8,3.2078]
[1762145191331,3.2078,3733.6,3732.9,9.385]
[1762145191836,0.13259435,3733.0,3732.9,9.38708131]
[1762145193029,0.36859435,3733.0,3732.9,9.38708131]
[1762145193627,0.13259435,3733.0,3732.9,9.38708131]
[1762145194234,0.00239435,3733.0,3732.9,9.38708131]
[1762145194529,0.13489435,3733.0,3732.9,9.38708131]
[1762145197632,0.00239435,3733.0,3732.9,9.38708131]
[1762145198434,3.3403,3734.0,3732.9,9.38708131]
[1762145198637,3.3403,3734.0,3733.3,3.2078]
[1762145198840,3.3403,3734.0,3733.4,9.86417]
[1762145199036,0.1325,3733.5,3733.4,9.86417]
[1762145199341,0.1325,3734.0,3733.6,0.48214]
[1762145199637,0.13476983,3734.0,3733.7,12.5898]
[1762145199936,0.13476983,3734.0,3733.7,13.07193]
[1762145200131,0.13476983,3734.0,3733.8,0.48212]
[1762145200331,0.00226983,3734.0,3733.8,0.48212]
[1762145200836,0.1325,3734.5,3733.7,13.07194]
[1762145201137,0.1325,3734.5,3734.1,3.2078]
[1762145201339,0.1325,3734.5,3734.2,9.381]
[1762145201740,0.13586507,3734.5,3734.2,9.381]
[1762145203840,0.236,3734.3,3734.2,9.381]
[1762145205040,0.13586507,3734.5,3734.2,9.381]
[1762145205432,0.2322,3734.3,3734.2,9.381]
[1762145206638,0.2322,3733.8,3733.7,3.2078]
[1762145206837,0.2322,3733.4,3733.3,3.2078]
[1762145207542,0.1327,3733.5,3733.3,3.2078]
[1762145207933,0.1327,3733.5,3733.2,3.603]
[1762145208333,0.2322,3733.3,3733.2,3.603]
[1762145211242,0.1327,3733.5,3733.2,3.603]
[1762145213946,0.1327,3733.5,3733.2,4.0852]
[1762145215143,0.1327,3733.5,3733.2,3.603]
[1762145216350,3.2078,3733.7,3733.2,3.603]
[1762145216546,3.2078,3733.7,3733.2,4.0852]
[1762145216858,0.1327,3734.0,3733.4,3.2078]
[1762145217151,0.1327,3734.0,3733.6,0.48215]
[1762145218448,0.1327,3734.0,3733.4,3.2078]
[1762145218846,3.34366507,3734.5,3733.9,3.2078]
[1762145219153,3.34366507,3734.5,3733.9,12.5858]
[1762145219154,0.1327,3734.0,3733.9,12.5858]
[1762145219753,3.34366507,3734.5,3733.9,12.5858]
[1762145220556,0.1327,3734.0,3733.9,12.5858]
[1762145220752,0.3649,3734.0,3733.5,3.2078]
[1762145220954,0.2322,3733.6,3733.5,3.2078]
[1762145221254,0.52016863,3733.6,3733.5,3.2078]
[1762145221555,0.28796863,3733.6,3733.5,3.2078]
[1762145221758,0.1327,3733.5,3733.1,3.2078]
[1762145221955,0.2322,3733.2,3733.1,3.2078]
[1762145222257,0.1327,3733.5,3733.1,3.2078]
[1762145222557,0.2322,3733.2,3733.1,3.2078]
[1762145223055,0.1327,3733.5,3733.1,3.2078]
[1762145223256,0.2880635,3733.4,3733.1,3.2078]
[1762145223447,0.1327,3733.5,3733.1,3.2078]
[1762145223649,0.2322,3733.2,3733.1,3.2078]
[1762145225051,0.1327,3733.5,3733.1,3.2078]
[1762145225252,0.28808605,3733.4,3733.1,3.2078]
[1762145225453,0.1327,3733.5,3733.1,3.2078]
[1762145225652,0.28808564,3733.4,3733.1,3.2078]
[1762145225853,0.1327,3733.5,3733.1,3.2078]
[1762145226049,0.28808565,3733.4,3733.1,3.2078]
[1762145226249,0.1327,3733.5,3733.1,3.2078]
[1762145226457,0.2880777,3733.4,3733.1,3.2078]
[1762145226657,0.2322,3733.2,3733.1,3.2078]
[1762145226858,0.1327,3733.5,3733.1,3.2078]
[1762145227046,0.28807667,3733.4,3733.1,3.2078]
[1762145227250,0.1327,3733.5,3733.1,3.2078]
[1762145227660,0.1327,3734.0,3733.2,0.48221]